bitfinex/quotes_BTCUSD_20260221
["timestamp","ask_amount","ask_price","bid_price","bid_amount"]
[1771706376169,0.14207411,68480.0,68471.0,0.07302326]
[1771706376979,0.14207411,68480.0,68472.0,0.00022]
[1771706377403,0.11671411,68479.0,68472.0,0.00022]
[1771706378653,0.07301636,68478.0,68472.0,0.00022]
[1771706383537,0.11671411,68479.0,68472.0,0.07324218]
[1771706383726,0.11691411,68479.0,68473.0,0.07302122]
[1771706389203,0.11691411,68479.0,68473.0,0.07341012]
[1771706396345,0.11691411,68479.0,68473.0,0.05329104]
[1771706400393,0.11691411,68479.0,68462.0,0.00022]
[1771706400394,0.025,68469.0,68464.0,0.17558]
[1771706400626,0.025,68469.0,68465.0,3.652179]
[1771706400627,0.14075536,68468.0,68465.0,3.652179]
[1771706400834,0.11575536,68468.0,68465.0,3.652179]
[1771706401046,0.07302651,68469.0,68465.0,3.652179]
[1771706401891,0.14095536,68479.0,68465.0,3.652179]
[1771706402093,0.07302008,68475.0,68467.0,0.07302692]
[1771706402306,0.07302008,68475.0,68468.0,0.0730266]
[1771706403594,0.07302008,68475.0,68468.0,0.0732466]
[1771706404216,0.07302113,68474.0,68468.0,0.00022]
[1771706404583,0.0002,68479.0,68468.0,0.00022]
[1771706404784,0.0732155,68479.0,68471.0,0.07302262]
[1771706406642,0.0732155,68479.0,68472.0,0.07302242]
[1771706410463,0.0732155,68479.0,68460.0,0.00016]
[1771706410464,0.09806454,68433.0,68431.0,1e-08]
[1771706410664,0.09806454,68433.0,68427.0,0.43829379]
[1771706410666,0.09806454,68433.0,68427.0,0.00012]
[1771706410667,0.025,68433.0,68427.0,0.00012]
[1771706410864,0.007614,68444.0,68427.0,0.00012]
[1771706410865,0.00016,68440.0,68427.0,0.00012]
[1771706411066,0.00016,68450.0,68427.0,0.00012]
[1771706411067,0.00016,68450.0,68431.0,0.12155062]
[1771706411286,0.00016,68450.0,68430.0,0.02292505]
[1771706411287,0.00016,68450.0,68438.0,0.02276505]
[1771706411288,0.07305186,68445.0,68438.0,0.02276505]
[1771706411533,0.07320707,68450.0,68437.0,0.07305961]
[1771706411728,0.07304708,68449.0,68437.0,0.07305924]
[1771706411901,0.07304829,68448.0,68440.0,0.02276505]
[1771706412108,0.0730496,68447.0,68440.0,0.02276505]
[1771706412283,0.00016,68450.0,68438.0,0.07305852]
[1771706412468,0.07305009,68447.0,68440.0,0.02276505]
[1771706412820,0.07305009,68447.0,68435.0,0.07306175]
[1771706412821,0.00016,68450.0,68433.0,0.12155062]
[1771706413032,0.07305908,68438.0,68432.0,0.17536]
[1771706413226,0.13979831,68450.0,68432.0,0.17536]
[1771706413227,0.025,68444.0,68432.0,0.17536]
[1771706413435,0.07305772,68440.0,68432.0,0.17536]
[1771706413990,0.07305775,68439.0,68432.0,0.17536]
[1771706414192,0.07305772,68440.0,68432.0,0.17536]
[1771706414193,0.07305883,68438.0,68432.0,0.17536]
[1771706415429,0.07305801,68439.0,68432.0,0.17536]
[1771706417445,0.07305801,68439.0,68432.0,0.17558]
[1771706417653,0.07305801,68439.0,68432.0,0.1555399]
[1771706417862,0.07305888,68438.0,68432.0,0.1555399]
[1771706418299,0.07305803,68439.0,68432.0,0.1555399]
[1771706418982,0.0728996,68439.0,68432.0,0.1555399]
[1771706419715,0.07305936,68438.0,68432.0,0.1555399]
[1771706419882,0.07306308,68435.0,68432.0,0.1555399]
[1771706420203,0.07306308,68435.0,68432.0,0.1754]
[1771706420462,0.09806308,68435.0,68432.0,0.1754]
[1771706420626,0.02538904,68435.0,68432.0,0.1754]
[1771706421044,0.07305465,68442.0,68432.0,0.1754]
[1771706421238,0.025,68447.0,68432.0,0.17547359]
[1771706421662,0.07305434,68443.0,68434.0,0.07306209]
[1771706421875,0.025,68447.0,68433.0,0.07306359]
[1771706422011,0.07305438,68443.0,68434.0,0.07306213]
[1771706422220,0.07305438,68443.0,68434.0,0.07306309]
[1771706422437,0.07305438,68443.0,68435.0,0.07306173]
[1771706422631,0.07305438,68443.0,68433.0,0.07306359]
[1771706422632,0.00016,68450.0,68434.0,0.12155062]
[1771706422839,0.07304743,68449.0,68440.0,0.02276505]
[1771706423019,0.07304743,68449.0,68441.0,0.07305483]
[1771706423462,0.07304828,68448.0,68441.0,0.07305483]
[1771706424227,0.073207,68450.0,68441.0,0.07305483]
[1771706424429,0.29215578,68457.0,68440.0,0.02276505]
[1771706424430,0.31713732,68461.0,68445.0,0.07305077]
[1771706424756,0.07304178,68454.0,68441.0,0.12155062]
[1771706424910,0.07304799,68449.0,68440.0,0.07321587]
[1771706425084,0.07304841,68448.0,68440.0,0.07321587]
[1771706425904,0.07304841,68448.0,68440.0,0.00016]
[1771706426510,0.07304841,68448.0,68430.0,0.02292505]
[1771706426512,0.07304543,68451.0,68420.0,0.00016]
[1771706426712,0.07304543,68451.0,68394.0,0.07364622]
[1771706426713,0.07304543,68451.0,68387.0,0.72155062]
[1771706426714,0.00016,68410.0,68387.0,0.72155062]
[1771706427075,0.00016,68410.0,68397.0,0.12155062]
[1771706427309,0.07309626,68403.0,68401.0,0.12155062]
[1771706427450,0.00016,68410.0,68401.0,0.12155062]
[1771706427654,0.00016,68420.0,68401.0,0.12155062]
[1771706427655,0.00016,68420.0,68401.0,3.065318]
[1771706427860,0.00011646,68420.0,68410.0,0.00016]
[1771706428062,0.02511646,68420.0,68412.0,0.07308656]
[1771706428410,0.02511646,68420.0,68412.0,0.07308659]
[1771706429942,0.02511646,68420.0,68412.0,0.02308659]
[1771706430169,0.02511646,68420.0,68413.0,0.0730855]
[1771706430386,0.09819456,68420.0,68411.0,0.24852741]
[1771706430587,0.02511646,68420.0,68411.0,0.24852741]
[1771706430796,0.02511646,68420.0,68390.0,0.1142091]
[1771706430797,0.02511646,68420.0,68395.0,0.07310466]
[1771706430799,0.07309679,68403.0,68395.0,0.07310466]
[1771706430997,0.07309679,68403.0,68392.0,0.176445]
[1771706430998,0.0226098,68408.0,68400.0,0.07309838]
[1771706431196,0.0226098,68406.0,68399.0,0.07310026]
[1771706431624,0.0226098,68405.0,68398.0,0.07310143]
[1771706431796,0.0226098,68404.0,68395.0,0.07310424]
[1771706432196,0.0226098,68404.0,68398.0,0.00022]
[1771706432831,0.29251883,68410.0,68392.0,0.176445]
[1771706432832,0.0226098,68407.0,68392.0,0.176445]
[1771706433037,0.0226098,68398.0,68392.0,0.176445]
[1771706433359,0.0731028,68397.0,68392.0,0.176445]
[1771706433489,0.0226098,68396.0,68392.0,0.176445]
[1771706433892,0.0226098,68399.0,68388.0,0.07311178]
[1771706434093,0.0226098,68399.0,68382.0,0.41401669]
[1771706434299,0.0226098,68394.0,68385.0,0.07311544]
[1771706434522,0.07310596,68394.0,68386.0,0.07311429]
[1771706434727,0.0226098,68393.0,68386.0,0.07311429]
[1771706435130,0.0226098,68393.0,68380.0,0.00016]
[1771706435352,0.00011641,68399.0,68392.0,0.07310691]
[1771706435538,0.00011641,68399.0,68385.0,0.12155062]
[1771706435539,0.00011641,68399.0,68393.0,0.07310673]
[1771706437138,0.02272621,68399.0,68393.0,0.07310673]
[1771706437802,0.09774424,68398.0,68389.0,0.07311033]
[1771706437977,0.09774424,68398.0,68385.0,0.12155062]
[1771706437978,0.02464166,68398.0,68392.0,0.07310713]
[1771706438543,0.02464166,68398.0,68393.0,0.00022]
[1771706439255,0.02464166,68395.0,68393.0,0.00022]
[1771706440042,0.09774652,68395.0,68393.0,0.00022]
[1771706440248,0.09774652,68395.0,68350.0,0.26332]
[1771706440249,0.00011641,68399.0,68350.0,0.26332]
[1771706440250,0.07312918,68373.0,68365.0,0.07313586]
[1771706440593,0.00016,68390.0,68365.0,0.07313586]
[1771706440594,0.00016,68390.0,68372.0,0.1375241]
[1771706440812,0.00016,68390.0,68370.0,0.00016]
[1771706440813,0.00016,68390.0,68377.0,0.29249422]
[1771706441017,0.00016,68390.0,68370.0,0.1142091]
[1771706441018,0.00016,68400.0,68390.0,0.07310934]
[1771706441223,0.07310082,68399.0,68390.0,0.07310934]
[1771706441353,0.07310188,68398.0,68390.0,0.07310934]
[1771706441759,0.07310188,68398.0,68389.0,0.07311093]
[1771706441760,0.07310291,68397.0,68389.0,0.07311093]
[1771706441964,0.07310695,68393.0,68385.0,0.07311464]
[1771706442318,0.07310623,68394.0,68386.0,0.07311357]
[1771706442455,0.07310695,68393.0,68386.0,0.07311357]
[1771706442926,0.02464166,68397.0,68384.0,0.17552]
[1771706442927,0.07310983,68391.0,68384.0,0.17552]
[1771706443132,0.07310839,68392.0,68384.0,0.17552]
[1771706443370,0.07310689,68393.0,68385.0,0.07311451]
[1771706443858,0.07310603,68394.0,68385.0,0.07311451]
[1771706444494,0.07310603,68394.0,68386.0,0.07311438]
[1771706445085,0.07310726,68393.0,68385.0,0.07311451]
[1771706445440,0.02464166,68397.0,68384.0,0.17552]
[1771706445644,0.07310983,68391.0,68385.0,0.00022]
[1771706445853,0.07310808,68392.0,68385.0,0.00022]
[1771706446063,0.02464166,68393.0,68385.0,0.00022]
[1771706446064,0.09774896,68393.0,68385.0,0.00022]
[1771706446273,0.07310998,68391.0,68385.0,0.00022]
[1771706446909,0.09774901,68393.0,68385.0,0.00022]
[1771706447111,0.0731133,68388.0,68385.0,0.00022]
[1771706447322,0.07311177,68389.0,68385.0,0.00022]
[1771706448022,0.02464166,68393.0,68386.0,0.07311436]
[1771706448219,0.02464166,68393.0,68385.0,0.00022]
[1771706448220,0.09774888,68393.0,68385.0,0.00022]
[1771706448716,0.09774888,68393.0,68385.0,0.07333526]
[1771706449381,0.02464166,68393.0,68385.0,0.00022]
[1771706449587,0.07311042,68390.0,68385.0,0.00022]
[1771706451146,0.02464166,68393.0,68385.0,0.07333451]
[1771706451392,0.02464166,68393.0,68385.0,0.00022]
[1771706451585,0.07311096,68390.0,68385.0,0.00022]
[1771706452074,0.09775262,68390.0,68385.0,0.00022]
[1771706452283,0.02464166,68390.0,68385.0,0.00022]
[1771706452526,0.07310796,68392.0,68385.0,0.00022]
[1771706452707,0.0731085,68392.0,68385.0,0.07333513]
[1771706452922,0.07310643,68394.0,68385.0,0.07333513]
[1771706453054,0.02464166,68395.0,68389.0,0.07311068]
[1771706453413,0.02464166,68395.0,68385.0,0.00022]
[1771706453414,0.09805859,68399.0,68385.0,0.00022]
[1771706453615,0.02495807,68399.0,68385.0,0.1378241]
[1771706453857,0.07310576,68395.0,68387.0,0.07311299]
[1771706454028,0.07310333,68397.0,68388.0,0.07311219]
[1771706454478,0.09805903,68399.0,68386.0,0.29245452]
[1771706454840,0.02495807,68399.0,68388.0,0.07311126]
[1771706455073,0.07310469,68396.0,68388.0,0.07311126]
[1771706455278,0.02495807,68399.0,68385.0,0.1378241]
[1771706455279,0.07310958,68391.0,68385.0,0.00022]
[1771706455486,0.13949714,68398.0,68385.0,0.00022]
[1771706455487,0.02464166,68392.0,68386.0,0.07311355]
[1771706455707,0.13949714,68398.0,68386.0,0.07311355]
[1771706455708,0.02464166,68397.0,68386.0,0.07311355]
[1771706455912,0.07310638,68394.0,68386.0,0.07311355]
[1771706456117,0.07310638,68394.0,68387.0,0.07311324]
[1771706456315,0.07310638,68394.0,68387.0,0.06693615]
[1771706456718,0.07310793,68393.0,68385.0,0.00022]
[1771706457116,0.07310801,68392.0,68385.0,0.0733352]
[1771706457519,0.07310677,68394.0,68386.0,0.07311396]
[1771706457890,0.07310712,68393.0,68385.0,0.0733352]
[1771706458276,0.02464166,68396.0,68385.0,0.0733352]
[1771706458277,0.02464166,68395.0,68386.0,0.07311236]
[1771706458558,0.0731044,68396.0,68388.0,0.07311148]
[1771706458730,0.0731044,68396.0,68389.0,0.07311046]
[1771706458958,0.00031641,68399.0,68392.0,0.07310749]
[1771706458959,0.07341745,68399.0,68392.0,0.07310749]
[1771706459233,0.0002,68392.0,68390.0,0.07310913]
[1771706460665,0.0002,68392.0,68391.0,0.07310903]
[1771706460839,0.11535403,68398.0,68391.0,0.07310888]
[1771706461019,0.11567044,68399.0,68391.0,0.07310888]
[1771706461214,0.11535403,68398.0,68392.0,0.07310793]
[1771706461537,0.18877119,68399.0,68387.0,0.29245102]
[1771706461740,0.18877119,68399.0,68391.0,0.07310822]
[1771706461984,0.07341716,68399.0,68392.0,0.07310794]
[1771706462184,0.00031641,68399.0,68392.0,0.07310794]
[1771706462514,0.00031641,68399.0,68391.0,0.07310822]
[1771706462515,0.07309632,68403.0,68395.0,0.0731039]
[1771706462635,0.07309632,68403.0,68394.0,0.0731039]
[1771706462832,0.07309547,68404.0,68396.0,0.07310281]
[1771706463046,0.17461478,68407.0,68398.0,0.07310103]
[1771706463047,0.07309216,68407.0,68398.0,0.07310103]
[1771706463247,0.07309436,68405.0,68395.0,0.07310285]
[1771706463614,0.07309814,68402.0,68393.0,0.07310663]
[1771706463822,0.07309972,68400.0,68392.0,0.07310772]
[1771706464021,0.07309972,68400.0,68391.0,0.09573337]
[1771706464217,0.07309868,68401.0,68394.0,0.0731057]
[1771706464449,0.02464166,68404.0,68397.0,0.07310231]
[1771706465055,0.09773688,68404.0,68397.0,0.07310231]
[1771706465210,0.02464166,68404.0,68398.0,0.07310153]
[1771706465389,0.14534759,68403.0,68397.0,0.07310231]
[1771706465590,0.14534759,68402.0,68398.0,0.07310155]
[1771706465834,0.14534759,68401.0,68398.0,0.07310155]
[1771706466038,0.14534759,68400.0,68397.0,0.07310236]
[1771706466377,0.02464166,68404.0,68397.0,0.07310236]
[1771706466528,0.14533528,68403.0,68397.0,0.07310236]
[1771706466729,0.14533528,68402.0,68397.0,0.07310236]
[1771706466939,0.14533528,68401.0,68396.0,0.0731035]
[1771706467307,0.14533528,68400.0,68397.0,0.07310262]
[1771706467509,0.02464166,68404.0,68397.0,0.07410262]
[1771706467726,0.14532495,68403.0,68397.0,0.07410262]
[1771706468014,0.14532495,68402.0,68397.0,0.001]
[1771706468243,0.14532495,68401.0,68397.0,0.001]
[1771706468434,0.14532495,68400.0,68397.0,0.001]
[1771706468651,0.07309643,68403.0,68396.0,0.0731034]
[1771706468862,0.1453145,68402.0,68396.0,0.0731034]
[1771706469019,0.1453145,68401.0,68396.0,0.0731034]
[1771706469230,0.09773711,68404.0,68399.0,0.07310007]
[1771706469231,0.02464166,68404.0,68399.0,0.07310007]
[1771706469851,0.16995142,68404.0,68399.0,0.07310007]
[1771706470058,0.02464166,68404.0,68397.0,0.07310239]
[1771706470268,0.02464166,68404.0,68398.0,0.07310151]
[1771706470269,0.1699513,68404.0,68398.0,0.07310151]
[1771706470464,0.02464166,68404.0,68398.0,0.07310151]
[1771706471082,0.16992883,68404.0,68398.0,0.07310151]
[1771706471290,0.09773716,68404.0,68397.0,0.07310239]
[1771706472187,0.09793716,68404.0,68397.0,0.07310239]
[1771706472385,0.14525661,68403.0,68397.0,0.07310239]
[1771706472990,0.21835335,68403.0,68396.0,0.00022]
[1771706473200,0.07309674,68403.0,68396.0,0.00022]
[1771706473590,0.07309784,68402.0,68396.0,0.00022]
[1771706474575,0.07309784,68402.0,68390.0,0.00016]
[1771706474576,0.29239338,68402.0,68390.0,0.00016]
[1771706474773,0.02251374,68391.0,68389.0,0.00022]
[1771706475319,0.07310933,68391.0,68389.0,0.00022]
[1771706475538,0.07310832,68392.0,68389.0,0.00022]
[1771706475748,0.07310907,68391.0,68389.0,0.00022]
[1771706475944,0.0731101,68390.0,68385.0,0.00022]
[1771706476147,0.07311073,68390.0,68385.0,0.00022]
[1771706476345,0.09562447,68390.0,68385.0,0.00022]
[1771706476582,0.07311073,68390.0,68385.0,0.00022]
[1771706477436,0.07310938,68391.0,68385.0,0.00022]
[1771706477863,0.07311013,68390.0,68385.0,0.00022]
[1771706478267,0.09562028,68394.0,68386.0,0.07311438]
[1771706478465,0.09562028,68394.0,68385.0,0.07333446]
[1771706478666,0.09562028,68394.0,68387.0,0.07311249]
[1771706478832,0.02251374,68394.0,68387.0,0.07311249]
[1771706479036,0.15084822,68402.0,68387.0,0.07311249]
[1771706479037,0.02251374,68403.0,68390.0,0.00022]
[1771706479232,0.0731046,68396.0,68390.0,0.00022]
[1771706481176,0.07310497,68395.0,68390.0,0.00022]
[1771706481617,0.07310399,68396.0,68390.0,0.00022]
[1771706482680,0.07310399,68396.0,68390.0,0.00060904]
[1771706483436,0.09561859,68395.0,68390.0,0.00060904]
[1771706483775,0.07311099,68390.0,68385.0,0.01022]
[1771706483980,0.02251374,68389.0,68385.0,0.01022]
[1771706484467,0.07349958,68390.0,68385.0,0.01022]
[1771706484648,0.00038926,68390.0,68385.0,0.01006594]
[1771706485814,0.00038926,68390.0,68385.0,0.0831805]
[1771706486432,0.00038926,68390.0,68385.0,0.01006594]
[1771706490337,0.07310308,68397.0,68385.0,0.01006594]
[1771706490536,0.07310561,68395.0,68388.0,0.07311208]
[1771706490742,0.31491718,68399.0,68385.0,0.01018235]
[1771706490743,0.02251374,68399.0,68385.0,0.01018235]
[1771706490946,0.07310343,68397.0,68385.0,0.01018235]
[1771706491126,0.07310343,68397.0,68389.0,0.07311012]
[1771706491327,0.09561717,68397.0,68385.0,0.30263987]
[1771706491557,0.07310456,68396.0,68389.0,0.07311014]
[1771706491969,0.0956183,68396.0,68389.0,0.07311014]
[1771706492533,0.07310506,68395.0,68388.0,0.07311213]
[1771706492938,0.0956188,68395.0,68388.0,0.07311213]
[1771706495341,0.02251374,68395.0,68388.0,0.07311213]
[1771706495545,0.02251374,68395.0,68389.0,0.0731111]
[1771706495841,0.02251374,68395.0,68390.0,0.0731101]
[1771706496928,0.02251374,68395.0,68389.0,0.07311084]
[1771706497378,0.02251374,68395.0,68390.0,0.07310998]
[1771706497578,0.02251374,68395.0,68389.0,0.07311084]
[1771706498688,0.02251374,68395.0,68389.0,0.07333084]
[1771706502269,0.02251374,68395.0,68389.0,0.07318682]
[1771706503260,0.00016,68400.0,68393.0,0.07310619]
[1771706503428,0.07325978,68400.0,68393.0,0.07310619]
[1771706503613,0.07310159,68398.0,68391.0,0.0731087]
[1771706503811,0.07325954,68400.0,68393.0,0.07310648]
[1771706504117,0.02478042,68399.0,68390.0,0.0731101]
[1771706504543,0.07310053,68399.0,68390.0,0.0731101]
[1771706504726,0.02478042,68398.0,68391.0,0.07310903]
[1771706505270,0.02478042,68398.0,68392.0,0.07310768]
[1771706505616,0.02478042,68398.0,68393.0,0.07310636]
[1771706506719,0.02478042,68398.0,68392.0,0.07310768]
[1771706507137,0.0002,68399.0,68393.0,0.07310674]
[1771706507542,0.02498042,68399.0,68393.0,0.07310674]
[1771706510194,0.0002,68401.0,68396.0,0.07310357]
[1771706510343,0.0002,68401.0,68397.0,0.07310262]
[1771706510544,0.0002,68401.0,68396.0,0.07310357]
[1771706510951,0.0002,68401.0,68396.0,0.07310307]
[1771706511157,0.0002,68401.0,68394.0,0.07310582]
[1771706511535,0.0002,68401.0,68395.0,0.07310442]
[1771706511737,0.0002,68401.0,68396.0,0.07310361]
[1771706512528,0.0002,68401.0,68390.0,0.18619428]
[1771706512529,0.0002,68401.0,68390.0,0.00038]
[1771706512775,0.07310121,68399.0,68392.0,0.07310756]
[1771706513179,0.0002,68401.0,68391.0,0.07310815]
[1771706513375,0.07309962,68400.0,68393.0,0.07310666]
[1771706513667,0.07309962,68400.0,68391.0,0.07310815]
[1771706513874,0.07309962,68400.0,68393.0,0.07310689]
[1771706514175,0.07329858,68401.0,68394.0,0.07310559]
[1771706514730,0.0002,68401.0,68390.0,0.09685275]
[1771706514913,0.0002,68401.0,68394.0,0.07310485]
[1771706515509,0.0002,68401.0,68395.0,0.0731042]
[1771706515701,0.0002,68401.0,68395.0,0.07296018]
[1771706516807,0.0002,68401.0,68392.0,0.29243005]
[1771706517010,0.38641861,68408.0,68396.0,0.07310298]
[1771706517269,0.07309638,68403.0,68396.0,0.07310298]
[1771706517606,0.07309544,68404.0,68396.0,0.07310298]
[1771706518851,0.07309267,68407.0,68395.0,0.02336372]
[1771706519051,0.02478042,68409.0,68400.0,0.07309862]
[1771706519255,0.07309154,68408.0,68401.0,0.07309823]
[1771706519862,0.02478042,68409.0,68395.0,0.02336372]
[1771706520077,0.07309534,68404.0,68397.0,0.07310167]
[1771706520878,0.07309446,68405.0,68397.0,0.07310167]
[1771706521225,0.07309446,68405.0,68398.0,0.07310142]
[1771706521385,0.07309333,68406.0,68399.0,0.0731004]
[1771706522072,0.07309333,68406.0,68399.0,0.05315353]
[1771706526368,0.07329333,68406.0,68399.0,0.05315353]
[1771706531460,0.0002,68406.0,68399.0,0.05315353]
[1771706531659,0.07309414,68405.0,68398.0,0.07310141]
[1771706534121,0.07329332,68406.0,68399.0,0.07310048]
[1771706538040,0.00016,68410.0,68403.0,0.07309594]
[1771706538238,0.07324964,68410.0,68402.0,0.07309694]
[1771706538437,0.07324964,68410.0,68403.0,0.07309609]
[1771706538981,0.07324964,68410.0,68402.0,0.07309694]
[1771706539491,0.0002,68406.0,68402.0,0.07309694]
[1771706539685,0.0002,68406.0,68404.0,0.07309494]
[1771706539887,0.0002,68406.0,68402.0,0.07309694]
[1771706540087,0.0002,68406.0,68400.0,0.07309883]
[1771706540088,0.0002,68406.0,68400.0,0.07309912]
[1771706541436,0.0002,68406.0,68401.0,0.07309821]
[1771706541635,0.0002,68406.0,68401.0,0.07309745]
[1771706542606,0.0002,68406.0,68399.0,0.07331973]
[1771706542806,0.0002,68406.0,68400.0,0.07309911]
[1771706543724,4.153e-05,68406.0,68400.0,0.07309911]
[1771706545682,4.153e-05,68406.0,68401.0,0.0730983]
[1771706550044,0.00027463,68406.0,68401.0,0.0730983]
[1771706552587,0.00027463,68406.0,68401.0,0.0733183]
[1771706552988,0.00027463,68406.0,68396.0,0.31545186]
[1771706552989,0.02357463,68406.0,68396.0,0.00022]
[1771706553187,0.02357463,68406.0,68389.0,0.02302101]
[1771706553188,0.07310076,68399.0,68391.0,0.07310888]
[1771706553614,0.07310142,68400.0,68391.0,0.07310888]
[1771706554023,0.07310048,68399.0,68391.0,0.07310888]
[1771706554262,0.0002331,68401.0,68390.0,0.1466002]
[1771706554406,0.29236581,68408.0,68397.0,0.09590286]
[1771706554616,0.07309421,68405.0,68398.0,0.07310075]
[1771706556120,0.07313531,68406.0,68397.0,0.09590363]
[1771706556339,0.07313531,68406.0,68398.0,0.02280101]
[1771706556791,0.07313531,68406.0,68398.0,0.02380101]
[1771706556962,0.07309413,68405.0,68398.0,0.02280101]
[1771706557744,0.07313531,68406.0,68399.0,0.07310036]
[1771706557944,4.153e-05,68406.0,68400.0,0.07309918]
[1771706558146,0.07313475,68406.0,68399.0,0.07310019]
[1771706559795,0.0730945,68405.0,68398.0,0.09612177]
[1771706563516,4.153e-05,68406.0,68392.0,0.02329935]
[1771706563719,0.07309645,68403.0,68394.0,0.09640422]
[1771706563926,0.07309645,68403.0,68394.0,0.02329935]
[1771706564124,0.07309931,68401.0,68394.0,0.02329935]
[1771706564361,0.07309931,68402.0,68395.0,0.07310422]
[1771706564974,0.07309931,68402.0,68394.0,0.09640419]
[1771706565961,0.07309842,68401.0,68394.0,0.09640419]
[1771706567545,0.07309842,68401.0,68394.0,0.09662419]
[1771706569126,0.25819278,68405.0,68394.0,0.09662485]
[1771706569714,0.07309948,68400.0,68394.0,0.02351935]
[1771706574431,0.07309948,68400.0,68394.0,0.09662514]
[1771706577786,0.07309948,68400.0,68394.0,0.02351935]
[1771706581298,0.07310064,68399.0,68394.0,0.02351935]
[1771706582510,0.07310064,68399.0,68394.0,0.00022]
[1771706584530,0.0002,68405.0,68391.0,0.09004909]
[1771706584758,0.0002,68405.0,68386.0,3.042112]
[1771706584759,0.07311224,68388.0,68386.0,3.042112]
[1771706584955,0.07310972,68391.0,68384.0,0.00022]
[1771706585116,0.02362344,68392.0,68386.0,2.688497]
[1771706585117,0.09673147,68392.0,68386.0,2.688497]
[1771706585532,0.07310803,68392.0,68386.0,2.688497]
[1771706587379,0.07310912,68391.0,68386.0,2.688497]
[1771706587503,0.07310912,68391.0,68384.0,0.07333558]
[1771706587712,0.07302912,68391.0,68385.0,0.01010235]
[1771706587912,0.07302912,68391.0,68386.0,2.638497]
[1771706588125,0.07302912,68391.0,68387.0,0.00022]
[1771706591186,0.07310549,68395.0,68387.0,0.00022]
[1771706591384,0.07310676,68394.0,68387.0,0.00022]
[1771706592289,0.07310676,68394.0,68387.0,0.07333295]
[1771706593032,0.07310549,68395.0,68388.0,0.07311203]
[1771706593459,0.07310549,68395.0,68387.0,0.07333293]
[1771706594259,0.07310216,68398.0,68387.0,0.00022]
[1771706594478,0.07310377,68396.0,68389.0,0.07311027]
[1771706594679,0.07310216,68398.0,68388.0,0.16427697]
[1771706594680,0.07310671,68394.0,68388.0,0.16427697]
[1771706595094,0.07330671,68394.0,68388.0,0.16427697]
[1771706595290,0.07330671,68394.0,68387.0,0.00022]
[1771706595644,0.07330671,68394.0,68387.0,0.07333315]
[1771706596242,0.0002,68394.0,68387.0,0.07333315]
[1771706597298,0.07311028,68390.0,68386.0,2.638497]
[1771706598515,0.07310829,68392.0,68386.0,2.638497]
[1771706602590,0.0970909,68394.0,68387.0,0.07311321]
[1771706602838,0.0733066,68394.0,68387.0,0.07311321]
[1771706603037,0.29240901,68398.0,68389.0,0.15617096]
[1771706603390,0.07310651,68394.0,68389.0,0.15617096]
[1771706604953,0.07310494,68395.0,68389.0,0.15617096]
[1771706605115,0.07310268,68397.0,68390.0,0.0731094]
[1771706605925,0.07326155,68400.0,68391.0,0.07310818]
[1771706606128,0.07326155,68400.0,68392.0,0.07310792]
[1771706606129,0.07326016,68400.0,68392.0,0.07310792]
[1771706606351,0.07326016,68400.0,68392.0,0.22927888]
[1771706606568,0.07310178,68398.0,68392.0,0.15617096]
[1771706607739,0.07310065,68399.0,68392.0,0.22927848]
[1771706607947,0.0002,68398.0,68392.0,0.22927848]
[1771706610202,0.0002,68398.0,68393.0,0.07310657]
[1771706610458,0.2925771,68405.0,68397.0,0.07310172]
[1771706610459,0.0002,68405.0,68397.0,0.07310172]
[1771706610627,0.07309519,68404.0,68397.0,0.07310172]
[1771706610800,0.07309519,68404.0,68396.0,0.07310344]
[1771706611006,0.07309626,68403.0,68396.0,0.07310344]
[1771706611612,0.07309835,68401.0,68394.0,0.07310523]
[1771706613729,0.07309835,68401.0,68393.0,0.09627221]
[1771706613922,0.07309835,68401.0,68394.0,0.07310553]
[1771706615261,0.07309759,68402.0,68393.0,0.09627029]
[1771706615482,0.07309876,68401.0,68393.0,0.09627029]
[1771706615624,0.07309759,68402.0,68393.0,0.09627029]
[1771706615828,0.07309759,68402.0,68394.0,0.07310582]
[1771706616231,0.07309652,68403.0,68395.0,0.07310456]
[1771706616770,0.0002,68404.0,68396.0,0.15617096]
[1771706617188,0.07309693,68403.0,68396.0,0.15617096]
[1771706618864,0.0002,68404.0,68396.0,0.15617096]
[1771706619201,0.07309782,68402.0,68396.0,0.15617096]
[1771706620038,0.07309638,68403.0,68396.0,0.22927438]
[1771706620475,0.07309751,68402.0,68396.0,0.15617096]
[1771706620876,0.07309727,68402.0,68396.0,0.15617096]
[1771706621628,0.0730985,68401.0,68396.0,0.15617096]
[1771706621839,0.07329822,68403.0,68396.0,0.15617096]
[1771706622411,0.07329822,68403.0,68395.0,0.07310398]
[1771706622595,0.0002,68403.0,68396.0,0.07310361]
[1771706623443,0.07329722,68404.0,68397.0,0.18085284]
[1771706623734,0.0002,68405.0,68397.0,0.18085284]
[1771706623735,0.0002,68405.0,68398.0,0.02493811]
[1771706624142,0.07309603,68404.0,68397.0,0.15591473]
[1771706624338,0.07309603,68404.0,68396.0,0.07310361]
[1771706625167,0.07329413,68405.0,68398.0,0.07310148]
[1771706625370,0.07329413,68405.0,68396.0,0.07310361]
[1771706625371,0.0002,68405.0,68401.0,0.07309824]
[1771706625922,0.0002,68405.0,68401.0,0.22901297]
[1771706626296,0.0002,68405.0,68401.0,0.07309824]
[1771706626742,0.0002,68405.0,68400.0,0.07309918]
[1771706627841,0.0002,68405.0,68400.0,0.25395202]
[1771706628470,0.00017023,68406.0,68400.0,0.07309918]
[1771706631088,0.00017023,68406.0,68401.0,0.07309824]
[1771706631808,0.00017023,68406.0,68402.0,0.07309722]
[1771706632162,1.172e-05,68406.0,68401.0,0.07309824]
[1771706633397,1.172e-05,68406.0,68402.0,0.02493811]
[1771706633890,1.172e-05,68406.0,68401.0,0.07309824]
[1771706634194,0.00021172,68406.0,68401.0,0.07309824]
[1771706637982,0.0730943,68405.0,68398.0,0.09803885]
[1771706638187,0.00021172,68406.0,68399.0,0.07310046]
[1771706638188,0.07330508,68406.0,68399.0,0.07310046]
[1771706639832,0.07309714,68403.0,68394.0,0.15613473]
[1771706640038,0.07309714,68403.0,68396.0,0.07310354]
[1771706641421,0.07309514,68404.0,68394.0,0.15613473]
[1771706641620,0.07309514,68404.0,68397.0,0.0731025]
[1771706646720,0.07330528,68406.0,68399.0,0.07310025]
[1771706651293,0.07330528,68406.0,68397.0,0.07332213]
[1771706651294,0.02311375,68409.0,68397.0,0.00022]
[1771706651471,0.02311375,68409.0,68398.0,0.07310133]
[1771706651676,0.00016,68410.0,68399.0,0.20105522]
[1771706651877,0.07309094,68408.0,68401.0,0.07309796]
[1771706655295,0.07329094,68408.0,68401.0,0.07309796]
[1771706655875,0.07329094,68408.0,68402.0,0.07309719]
[1771706656825,0.0002,68408.0,68402.0,0.07309719]
[1771706658068,0.0002,68408.0,68401.0,0.07309622]
[1771706658608,0.0002,68408.0,68402.0,0.07309652]